{"text_format":"1","workbook":"xlsx","n_sheets":3,"sheets":["IndiceElectronico","Modelo Expediente Judicial","Instrucciónes MEJ"],"not_rendered":{"charts":0,"images":2,"macros":1,"external_links":0,"defined_names":8,"comments":0,"pivot_tables":0},"unopened":[],"bounds":{"document_bytes":16777216,"sheet_cells":100000,"rows_first":2000,"rows_last":500,"rows_between":2000,"halvings":0,"cell_chars":16384,"cell_head_chars":4096},"cells_cut":0,"cells_raw":0,"read":"whole","date_system":"1900"}

{"sheet":"IndiceElectronico","index":0,"n_rows":19,"n_cols":11,"rows_kept":19,"cut":false,"hidden":false,"merged":[[26,2,30,4],[0,0,0,10],[4,1,4,5],[18,1,18,10],[5,1,5,5],[6,1,6,5],[1,7,1,10],[4,7,5,8],[4,9,5,10],[2,7,3,8],[2,9,3,10],[1,1,1,5],[2,1,2,5],[3,1,3,5]]}
["ÍNDICE DEL EXPEDIENTE JUDICIAL ELECTRÓNICO"]
["Ciudad","Armenia, Quindío",null,null,null,null,"___","EXPEDIENTE FÍSICO"]
["Despacho Judicial","Juzgado Quinto Penal del Circuito con Funciones de Conocimiento",null,null,null,null,"___","El expediente judicial posee documentos físicos:",null,"SI____     NO __x__"]
["Serie o Subserie Documental","Acciones de tutela",null,null,null,null,"___"]
["No. Radicación del Proceso","63001-31-09-005-2024-00108-00",null,null,null,null,"___","No. de carpetas, legajos o tomos:"]
["Partes Procesales (Parte A)\n(demandado, procesado, accionado)","Escuela Judicial Rodrigo Lara Bonilla",null,null,null,null,"___"]
["Partes Procesales (Parte B)\n(demandante, denunciante, accionante)","Diego Alexander Marín Bedoya",null,null,null,null,"___"]
[]
["Nombre Documento","Fecha Creación Documento","Fecha Incorporación Expediete","Orden Documento ","Número Páginas","Página Inicio","Página \nFin","Formato","Tamaño","Origen","Observaciones"]
["01ActaReparto","2024-11-15","2024-11-15",{"$f":"IF($A10=\"\",\"\",1)","v":1},4,1,{"$f":"IF(F10=\"\",\"\",(+F10+(E10-F10)))","v":4},"PDF","540 KB",{"$f":"IF(I10=\"\",\"\",\"ELECTRÓNICO\")","v":"ELECTRÓNICO"}]
["02EscritoTutela","2024-11-15","2024-11-15",{"$f":"IF($A11=\"\",\"\",D10+1)","v":2},1383,{"$f":"+IF(E11=\"\",\"\",(1+G10))","v":5},{"$f":"IF(F11=\"\",\"\",+F11+(E11-1))","v":1387},"PDF","29276 KB",{"$f":"IF(I11=\"\",\"\",\"ELECTRÓNICO\")","v":"ELECTRÓNICO"}]
["03AutoImpedimento","2024-11-15","2024-11-15",3,2,{"$f":"+IF(E12=\"\",\"\",(1+G11))","v":1388},{"$f":"IF(F12=\"\",\"\",+F12+(E12-1))","v":1389},"PDF","206 KB","ELECTRÓNICO"]
["04NotificaImpedimento","2024-11-15","2024-11-15",4,2,1390,1391,"PDF","257 KB","ELECTRÓNICO"]
["05EnvioExpedienteImpedimento","2024-11-15","2024-11-15",5,3,1392,{"$f":"IF(F14=\"\",\"\",+F14+(E14-1))","v":1394},"PDF","577 KB","ELECTRÓNICO"]
[null,null,null,"",null,"","","PDF",null,""]
[null,null,null,"",null,"","","PDF",null,""]
[null,null,null,"",null,{"$f":"+IF(E17=\"\",\"\",(1+G16))","v":""},"","PDF",null,""]
[null,null,null,"",null,"","","PDF",null,""]
["FECHA DE CIERRE DEL EXPEDIENTE: ",{"$f":"MAX(B11:B18)","v":"2024-11-15"}]

{"sheet":"Modelo Expediente Judicial","index":1,"n_rows":33,"n_cols":8,"rows_kept":33,"cut":false,"hidden":false,"merged":[[32,2,32,7],[18,3,18,7],[19,3,19,5],[22,3,22,7],[23,3,23,7],[24,3,24,7],[25,3,25,7],[26,3,26,7],[27,3,27,7],[28,3,28,7],[29,3,29,7],[30,3,30,7],[17,3,17,7],[3,4,6,7],[9,2,9,7],[11,2,11,5],[13,3,13,7],[14,3,14,7]]}
[]
[]
[]
[null,null,null,null,"CONSEJO SECCIONAL DE LA JUDICATURA DEL CAQUETÁ - DESPACHO 2"]
[]
[]
[]
[]
[]
[null,null,"Expediente Judicial "]
[]
[]
[null,null,"Datos de clasificación (TRD)"]
[null,null,"Serie:",955]
[null,null,"Subserie:","VIGILANCIA JUDICIAL ADMINISTRATIVA"]
[]
[null,null,"Datos de Contenido "]
[null,null,"No. Proceso: ",{"$f":"IndiceElectronico!B5","v":"63001-31-09-005-2024-00108-00"}]
[null,null,"No. Cuadernos:","1- 1"]
[null,null,"Cuaderno:",1,null,null,"Folios:",{"$f":"MAX(IndiceElectronico!G10:G18)","v":1394}]
[]
[null,null,"Partes procesales"]
[null,null,"Parte A:",{"$f":"IndiceElectronico!B7","v":"Diego Alexander Marín Bedoya"}]
[null,null,"(demandante, denunciante, accionante, etc) "]
[]
[null,null,"Parte B:",{"$f":"IndiceElectronico!B6","v":"Escuela Judicial Rodrigo Lara Bonilla"}]
[null,null,"(demandado, procesado, accionado, etc) "]
[]
[null,null,"Tipo Proceso:","VIGILANCIA JUDICIAL ADMINISTRATIVA"]
[null,null,"Fecha inicio:",{"$f":"IndiceElectronico!B11","v":"2024-11-15"}]
[null,null,"Ubicación:","ONE DRIVE - DESPACHO 2"]
[]
[null,null,"Centro de Documentación Judicial CENDOJ \nFormato: modelo rótulo expediente judicial "]

{"sheet":"Instrucciónes MEJ","index":2,"n_rows":13,"n_cols":1,"rows_kept":13,"cut":false,"hidden":false,"merged":[[11,0,11,6],[12,0,19,6],[0,0,4,6],[6,0,6,6],[7,0,7,6],[8,0,8,6],[9,0,9,6],[10,0,10,6]]}
["La descripción de cada proceso se realizará en dos partes, la primera parte describe los datos de clasificación documental (TRD) y la segunda parte describe el contenido del proceso:  "]
[]
[]
[]
[]
[]
["El espacio de encabezado: Ingresar los datos de identificación de cada despacho"]
["Datos de clasificación documental: "]
["Serie: Nombre de la serie documental señalada en la Tabla de Retención Documental"]
["Subserie: Nombre de la subserie documental señalada en la Tabla de Retención Documental"]
["Datos de contenido:"]
["No. De proceso: Número de identificación del proceso o expediente"]
["No. De cuadernos: Número de cuadernos o unidades documentales que conforman el proceso o expediente No. De cuadernos: Número de cuadernos o unidades documentales que conforman el proceso o expediente\n\nCuaderno: Nombre del cuaderno al que hace referencia el contenido descrito\n\nFolios: Número de folios del cuaderno descrito\n\nPartes procesales: Nombre de las personas (Naturales o jurídicas) que intervienen en el proceso\n\n- Parte A:  Hace referencia al demandante, denunciante, accionante, etc.\n- Parte B:  Hace referencia al demandado, procesado, accionado, etc.\n\nTipo de proceso: Especialidad del proceso\n\nFecha de inicio: Fecha de inicio del proceso o expediente\n\nUbicación: Número de caja o lugar donde se conserva el expediente o proceso\n"]